fUST/lending_fUST_20250523
["ID","MTS","AMOUNT","RATE_DAILY","PERIOD"]
[362084816,1747984243641,-529.21401769,0.00016712,2]
[362084817,1747984243651,-430.0,0.00016712,2]
[362084818,1747984243662,-469.07109093,0.00016712,2]
[362084819,1747984243672,-827.35,0.00016712,2]
[362084820,1747984243682,-430.0,0.00016712,2]
[362084821,1747984243691,-430.0,0.00016712,2]
[362084822,1747984243703,-421.23889422,0.00016712,2]
[362084823,1747984243713,-204.02649153,0.00016712,2]
[362084824,1747984243723,-430.0,0.00016712,2]
[362084825,1747984243732,-430.0,0.00016712,2]
[362084826,1747984243742,-430.0,0.00016712,2]
[362084827,1747984243751,-430.0,0.00016712,2]
[362084828,1747984243761,-430.0,0.00016712,2]
[362084829,1747984243771,-430.0,0.00016712,2]
[362084830,1747984243782,-430.0,0.00016712,2]
[362084831,1747984243792,-430.0,0.00016712,2]
[362084832,1747984243802,-576.2,0.00016712,2]
[362084833,1747984243812,-770.39,0.00016712,2]
[362084834,1747984243822,-783.67,0.00016712,2]
[362084835,1747984243833,-430.0,0.00016712,2]
[362084836,1747984243843,-734.61,0.00016712,2]
[362084837,1747984243853,-165.54550337,0.00016712,2]
[362084838,1747984243863,-659.77,0.00016712,2]
[362084839,1747984243873,-430.0,0.00016712,2]
[362084840,1747984243882,-430.0,0.00016712,2]
[362084841,1747984243891,-430.0,0.00016712,2]
[362084842,1747984243901,-430.0,0.00016712,2]
[362084843,1747984243911,-430.0,0.00016712,2]
[362084844,1747984243920,-430.0,0.00016712,2]
[362084845,1747984243929,-420.0,0.00016712,2]
[362084846,1747984243939,-2145.95,0.00016712,2]
[362084847,1747984243948,-497.23,0.00016712,2]
[362084848,1747984243957,-653.64,0.00016712,2]
[362084849,1747984243967,-430.0,0.00016712,2]
[362084850,1747984243977,-430.0,0.00016712,2]
[362084851,1747984243986,-430.0,0.00016712,2]
[362084852,1747984243996,-2046.47,0.00016712,2]
[362084853,1747984244006,-430.0,0.00016712,2]
[362084854,1747984244015,-430.0,0.00016712,2]
[362084855,1747984244024,-430.0,0.00016712,2]
[362084856,1747984244034,-430.0,0.00016712,2]
[362084857,1747984244043,-430.0,0.00016712,2]
[362084858,1747984244053,-430.0,0.00016712,2]
[362084859,1747984244063,-430.0,0.00016712,2]
[362084860,1747984244072,-430.0,0.00016712,2]
[362084861,1747984244082,-430.0,0.00016712,2]
[362084862,1747984244091,-430.0,0.00016712,2]
[362084863,1747984244101,-685.42,0.00016712,2]
[362084864,1747984244110,-430.0,0.00016712,2]
[362084865,1747984244120,-430.0,0.00016712,2]
[362084866,1747984244130,-430.0,0.00016712,2]
[362084867,1747984244139,-400.0,0.00016712,2]
[362084868,1747984244149,-1708.69,0.00016712,2]
[362084869,1747984244159,-500.0,0.00016933,2]
[362084870,1747984244169,-500.0,0.00016933,2]
[362084871,1747984244178,-500.0,0.00016933,2]
[362084872,1747984244188,-622.32,0.00016985,2]
[362084873,1747984244198,-622.32,0.00016985,2]
[362084874,1747984244210,-430.0,0.00016986,2]
[362084875,1747984244220,-440.22610968,0.00016986,2]
[362084876,1747984244230,-373.28927229,0.00016986,2]
[362084877,1747984244239,-430.0,0.00016986,2]
[362084878,1747984244249,-430.0,0.00016986,2]
[362084879,1747984244259,-369.50258221,0.00016986,2]
[362084880,1747984244268,-430.0,0.00016986,2]
[362084881,1747984244278,-430.0,0.00016986,2]
[362084882,1747984244288,-430.0,0.00016986,2]
[362084883,1747984244298,-430.0,0.00016986,2]
[362084884,1747984244307,-430.0,0.00016986,2]
[362084885,1747984244318,-430.0,0.00016986,2]
[362084886,1747984244327,-430.0,0.00016986,2]
[362084887,1747984244337,-493.93326198,0.00016986,2]
[362084888,1747984244350,-381.97021409,0.00016986,2]
[362084889,1747984244365,-420.9218557,0.00016986,2]
[362084890,1747984244382,-430.0,0.00016986,2]
[362084891,1747984244398,-430.0,0.00016986,2]
[362084892,1747984244410,-472.61463669,0.00016986,2]
[362084893,1747984244423,-812.04,0.00016986,2]
[362084894,1747984244438,-430.0,0.00016986,2]
[362084895,1747984244453,-430.0,0.00016986,2]
[362084896,1747984244467,-430.0,0.00016986,2]
[362084897,1747984244482,-430.0,0.00016986,2]
[362084898,1747984244496,-420.0,0.00016986,2]
[362084899,1747984244511,-430.0,0.00016986,2]
[362084900,1747984244526,-430.0,0.00016986,2]
[362084901,1747984244541,-167.13163836,0.00016986,2]
[362084902,1747984244554,-430.0,0.00016986,2]
[362084903,1747984244566,-430.0,0.00016986,2]
[362084904,1747984244580,-654.84,0.00016986,2]
[362084905,1747984244593,-430.0,0.00016986,2]
[362084906,1747984244607,-430.0,0.00016986,2]
[362084907,1747984244623,-528.24,0.00016986,2]
[362084908,1747984244636,-430.0,0.00016986,2]
[362084909,1747984244648,-430.0,0.00016986,2]
[362084910,1747984244660,-430.0,0.00016986,2]
[362084911,1747984244673,-430.0,0.00016986,2]
[362084912,1747984244685,-430.0,0.00016986,2]
[362084913,1747984244701,-430.0,0.00016986,2]
[362084914,1747984244715,-430.0,0.00016986,2]
[362084915,1747984244729,-430.0,0.00016986,2]
[362084916,1747984244743,-827.35,0.00016986,2]
[362084917,1747984244759,-430.0,0.00016986,2]
[362084918,1747984244774,-430.0,0.00016986,2]
[362084919,1747984244791,-430.0,0.00016986,2]
[362084920,1747984244803,-430.0,0.00016986,2]
[362084921,1747984244815,-430.0,0.00016986,2]
[362084922,1747984244827,-430.0,0.00016986,2]
[362084923,1747984244839,-430.0,0.00016986,2]
[362084924,1747984244853,-576.2,0.00016986,2]
[362084925,1747984244868,-770.39,0.00016986,2]
[362084926,1747984244882,-783.67,0.00016986,2]
[362084927,1747984244893,-734.61,0.00016986,2]
[362084928,1747984244905,-659.77,0.00016986,2]
[362084929,1747984244917,-430.0,0.00016986,2]
[362084930,1747984244932,-430.0,0.00016986,2]
[362084931,1747984244945,-430.0,0.00016986,2]
[362084932,1747984244957,-430.0,0.00016986,2]
[362084933,1747984244968,-2145.95,0.00016986,2]
[362084934,1747984244980,-497.23,0.00016986,2]
[362084935,1747984244992,-430.0,0.00016986,2]
[362084936,1747984245005,-653.64,0.00016986,2]
[362084937,1747984245017,-430.0,0.00016986,2]
[362084938,1747984245029,-2046.47,0.00016986,2]
[362084939,1747984245041,-430.0,0.00016986,2]
[362084940,1747984245053,-430.0,0.00016986,2]
[362084941,1747984245065,-430.0,0.00016986,2]
[362084942,1747984245077,-430.0,0.00016986,2]
[362084943,1747984245089,-430.0,0.00016986,2]
[362084944,1747984245101,-430.0,0.00016986,2]
[362084945,1747984245113,-430.0,0.00016986,2]
[362084946,1747984245124,-685.42,0.00016986,2]
[362084947,1747984245136,-430.0,0.00016986,2]
[362084948,1747984245148,-430.0,0.00016986,2]
[362084949,1747984245160,-1708.69,0.00016986,2]
[362084950,1747984245172,-503.30338917,0.00017015,2]
[362084951,1747984245184,-507.93830376,0.00017015,2]
[362084952,1747984245195,-550.05590064,0.00017087,2]
[362084953,1747984245206,-517.68468939,0.00017232,2]
[362084954,1747984245218,-622.32,0.00017259,2]
[362084955,1747984245230,-622.32,0.00017259,2]
[362084956,1747984245243,-259.36189208,0.0001726,2]
[362084957,1747984245255,-430.0,0.0001726,2]
[362084958,1747984245267,-430.0,0.0001726,2]
[362084959,1747984245279,-494.61824171,0.0001726,2]
[362084960,1747984245290,-430.0,0.0001726,2]
[362084961,1747984245303,-430.0,0.0001726,2]
[362084962,1747984245316,-430.0,0.0001726,2]
[362084963,1747984245327,-430.0,0.0001726,2]
[362084964,1747984245339,-812.04,0.0001726,2]
[362084965,1747984245352,-430.0,0.0001726,2]
[362084966,1747984245364,-159.18346715,0.0001726,2]
[362084967,1747984245376,-430.0,0.0001726,2]
[362084968,1747984245388,-430.0,0.0001726,2]
[362084969,1747984245400,-430.0,0.0001726,2]
[362084970,1747984245413,-430.0,0.0001726,2]
[362084971,1747984245425,-430.0,0.0001726,2]
[362084972,1747984245438,-654.84,0.0001726,2]
[362084973,1747984245449,-430.0,0.0001726,2]
[362084974,1747984245461,-430.0,0.0001726,2]
[362084975,1747984245473,-528.24,0.0001726,2]
[362084976,1747984245485,-251.92901184,0.0001726,2]
[362084977,1747984245497,-430.0,0.0001726,2]
[362084978,1747984245509,-430.0,0.0001726,2]
[362084979,1747984245522,-430.0,0.0001726,2]
[362084980,1747984245534,-430.0,0.0001726,2]
[362084981,1747984245547,-430.0,0.0001726,2]
[362084982,1747984245558,-430.0,0.0001726,2]
[362084983,1747984245571,-430.0,0.0001726,2]
[362084984,1747984245584,-827.35,0.0001726,2]
[362084985,1747984245597,-430.0,0.0001726,2]
[362084986,1747984245610,-430.0,0.0001726,2]
[362084987,1747984245626,-430.0,0.0001726,2]
[362084988,1747984245639,-430.0,0.0001726,2]
[362084989,1747984245651,-430.0,0.0001726,2]
[362084990,1747984245664,-576.2,0.0001726,2]
[362084991,1747984245677,-770.39,0.0001726,2]
[362084992,1747984245690,-783.67,0.0001726,2]
[362084993,1747984245703,-734.61,0.0001726,2]
[362084995,1747984245717,-659.77,0.0001726,2]
[362084997,1747984245730,-430.0,0.0001726,2]
[362084998,1747984245742,-430.0,0.0001726,2]
[362084999,1747984245752,-430.0,0.0001726,2]
[362085000,1747984245762,-430.0,0.0001726,2]
[362085001,1747984245771,-2145.95,0.0001726,2]
[362085002,1747984245781,-497.23,0.0001726,2]
[362085003,1747984245791,-653.64,0.0001726,2]
[362085004,1747984245995,-2046.47,0.0001726,2]
[362085005,1747984246011,-430.0,0.0001726,2]
[362085006,1747984246021,-430.0,0.0001726,2]
[362085007,1747984246030,-430.0,0.0001726,2]
[362085008,1747984246040,-430.0,0.0001726,2]
[362085009,1747984246050,-430.0,0.0001726,2]
[362085010,1747984246059,-470.0,0.0001726,2]
[362085011,1747984246069,-430.0,0.0001726,2]
[362085012,1747984246079,-685.42,0.0001726,2]
[362085013,1747984246088,-430.0,0.0001726,2]
[362085014,1747984246098,-430.0,0.0001726,2]
[362085016,1747984246107,-1708.69,0.0001726,2]
[362085017,1747984246117,-2720.8,0.00017359,2]
[362085018,1747984246127,-2720.8,0.00017359,2]
[362085019,1747984246136,-2720.8,0.00017359,2]
[362085020,1747984246146,-2720.8,0.00017359,2]
[362085022,1747984246155,-2720.8,0.00017359,2]
[362085024,1747984246165,-2720.8,0.00017359,2]
[362085026,1747984246174,-2720.8,0.00017359,2]
[362085028,1747984246183,-2720.8,0.00017359,2]
[362085030,1747984246193,-622.32,0.00017359,2]
[362085032,1747984246202,-622.32,0.00017359,2]
[362085034,1747984246211,-115.26941535,0.0001736,2]
[362085036,1747984246221,-5000.0,0.0001736,2]
[362085039,1747984246230,-5000.0,0.0001736,2]
[362085042,1747984246239,-5000.0,0.0001736,2]
[362085045,1747984246247,-5000.0,0.0001736,2]
[362085048,1747984246257,-5000.0,0.0001736,2]
[362085051,1747984246266,-5000.0,0.0001736,2]
[362085053,1747984246275,-5000.0,0.0001736,2]
[362085057,1747984246284,-165.26997283,0.0001736,2]
[362085060,1747984246294,-2726.6,0.0001736,2]
[362085063,1747984246303,-2726.6,0.0001736,2]
[362085066,1747984246313,-500.0,0.0001748,2]
[362085068,1747984246322,-622.32,0.00017533,2]
[362085071,1747984246332,-622.32,0.00017533,2]
[362085073,1747984246341,-13429.62300461,0.00017534,3]
[362085075,1747984246350,-454.78914695,0.00017534,2]
[362085077,1747984246359,-400.1363668,0.00017534,2]
[362085080,1747984246367,-430.0,0.00017534,2]
[362085083,1747984246377,-430.0,0.00017534,2]
[362085086,1747984246388,-430.0,0.00017534,2]
[362085089,1747984246397,-430.0,0.00017534,2]
[362085092,1747984246406,-812.04,0.00017534,2]
[362085094,1747984246416,-430.0,0.00017534,2]
[362085096,1747984246426,-430.0,0.00017534,2]
[362085098,1747984246436,-430.0,0.00017534,2]
[362085100,1747984246445,-430.0,0.00017534,2]
[362085102,1747984246454,-430.0,0.00017534,2]
[362085104,1747984246464,-430.0,0.00017534,2]
[362085106,1747984246474,-654.84,0.00017534,2]
[362085108,1747984246483,-430.0,0.00017534,2]
[362085110,1747984246493,-205.12706588,0.00017534,2]
[362085112,1747984246502,-528.24,0.00017534,2]
[362085114,1747984246511,-430.0,0.00017534,2]
[362085116,1747984246521,-430.0,0.00017534,2]
[362085118,1747984246530,-430.0,0.00017534,2]
[362085120,1747984246539,-430.0,0.00017534,2]
[362085122,1747984246548,-430.0,0.00017534,2]
[362085124,1747984246558,-430.0,0.00017534,2]
[362085126,1747984246568,-430.0,0.00017534,2]
[362085128,1747984246578,-827.35,0.00017534,2]
[362085130,1747984246586,-430.0,0.00017534,2]
[362085132,1747984246595,-430.0,0.00017534,2]
[362085134,1747984246603,-430.0,0.00017534,2]
[362085136,1747984246613,-430.0,0.00017534,2]
[362085138,1747984246625,-430.0,0.00017534,2]
[362085140,1747984246634,-576.2,0.00017534,2]
[362085142,1747984246642,-770.39,0.00017534,2]
[362085144,1747984246651,-783.67,0.00017534,2]
[362085146,1747984246659,-734.61,0.00017534,2]
[362085148,1747984246669,-659.77,0.00017534,2]
[362085149,1747984246677,-430.0,0.00017534,2]
[362085150,1747984246687,-430.0,0.00017534,2]
[362085151,1747984246696,-430.0,0.00017534,2]
[362085152,1747984246705,-470.0,0.00017534,2]
[362085153,1747984246714,-2145.95,0.00017534,2]
[362085154,1747984246723,-497.23,0.00017534,2]
[362085155,1747984246732,-653.64,0.00017534,2]
[362085156,1747984246741,-2046.47,0.00017534,2]
[362085157,1747984246750,-430.0,0.00017534,2]
[362085158,1747984246760,-430.0,0.00017534,2]
[362085159,1747984246769,-430.0,0.00017534,2]
[362085160,1747984246779,-430.0,0.00017534,2]
[362085161,1747984246787,-439.999999,0.00017534,2]
[362085162,1747984246795,-430.0,0.00017534,2]
[362085163,1747984246804,-685.42,0.00017534,2]
[362085164,1747984246813,-430.0,0.00017534,2]
[362085166,1747984246823,-430.0,0.00017534,2]
[362085167,1747984246832,-1708.69,0.00017534,2]
[362085168,1747984246840,-397.744101,0.00017561,2]
[362085169,1747984246848,-212.48480548,0.00017598,3]
[362085171,1747984246855,-12647.66147447,0.00017598,3]
[362085173,1747984246863,-1705.667964,0.00017598,2]
[362085175,1747984246871,-151.866833,0.00017598,2]
[362085177,1747984246879,-151.0,0.00017598,2]
[362085179,1747984246886,-151.0,0.00017598,2]
[362085181,1747984246893,-151.0,0.00017598,2]
[362085183,1747984246901,-151.0,0.00017598,2]
[362085185,1747984246910,-160.0,0.00017679,2]
[362085187,1747984246918,-622.32,0.00017683,2]
[362085189,1747984246927,-622.32,0.00017683,2]
[362085191,1747984246936,-622.32,0.00017683,2]
[362085193,1747984246944,-622.32,0.00017683,2]
[362085195,1747984246952,-622.44801374,0.00017683,2]
[362085197,1747984246960,-160.0,0.00017683,2]
[362085199,1747984246969,-160.0,0.00017683,2]
[362085201,1747984246978,-160.0,0.00017683,2]
[362085203,1747984246986,-160.0,0.00017683,2]
[362085206,1747984246995,-422.85710789,0.00017683,2]
[362085208,1747984247004,-160.0,0.00017683,2]
[362085210,1747984247013,-212.48480548,0.00017683,2]
[362085212,1747984247022,-12647.66147447,0.00017683,2]
[362085214,1747984247030,-160.0,0.00017683,2]
[362085216,1747984247039,-160.0,0.00017683,2]
[362085218,1747984247047,-894.64583333,0.00017683,2]
[362085220,1747984247055,-314.57823366,0.00017683,2]
[362085222,1747984247064,-213.33990914,0.00017688,2]
[362085226,1747984247255,-336.78023061,0.00016438,2]
[362085227,1747984247265,-286.66009086,0.00017688,2]
[362085228,1747984247275,-501.08594553,0.00017688,2]
[362085229,1747984247284,-430.0,0.00017808,2]
[362085230,1747984247293,-430.0,0.00017808,2]
[362085231,1747984247302,-430.0,0.00017808,2]
[362085232,1747984247311,-341.94694667,0.00017808,2]
[362085233,1747984247320,-812.04,0.00017808,2]
[362085234,1747984247329,-430.0,0.00017808,2]
[362085235,1747984247339,-430.0,0.00017808,2]
[362085236,1747984247350,-430.0,0.00017808,2]
[362085237,1747984247360,-430.0,0.00017808,2]
[362085238,1747984247371,-430.0,0.00017808,2]
[362085239,1747984247382,-430.0,0.00017808,2]
[362085240,1747984247392,-654.84,0.00017808,2]
[362085241,1747984247403,-430.0,0.00017808,2]
[362085242,1747984247413,-528.24,0.00017808,2]
[362085243,1747984247423,-430.0,0.00017808,2]
[362085244,1747984247434,-430.0,0.00017808,2]
[362085245,1747984247444,-516.96222336,0.00017808,2]
[362085246,1747984247455,-430.0,0.00017808,2]
[362085247,1747984247466,-430.0,0.00017808,2]
[362085248,1747984247476,-430.0,0.00017808,2]
[362085249,1747984247485,-154.85030505,0.00017808,2]
[362085250,1747984247494,-227.29832377,0.00017808,2]
[362085251,1747984247871,-430.0,0.00016438,2]
[362085252,1747984247880,-430.0,0.00016438,2]
[362085253,1747984247890,-430.0,0.00016712,2]
[362085254,1747984247899,-600.05167623,0.00017808,2]
[362085255,1747984247909,-168.86794874,0.00017808,2]
[362085256,1747984247921,-261.13205126,0.00017808,2]
[362085257,1747984247930,-430.0,0.00017808,2]
[362085258,1747984247940,-430.0,0.00017808,2]
[362085259,1747984247950,-430.0,0.00017808,2]
[362085260,1747984247960,-430.0,0.00017808,2]
[362085261,1747984247970,-576.2,0.00017808,2]
[362085262,1747984247979,-770.39,0.00017808,2]
[362085263,1747984247989,-783.67,0.00017808,2]
[362085264,1747984247998,-734.61,0.00017808,2]
[362085265,1747984248008,-659.77,0.00017808,2]
[362085266,1747984248017,-430.0,0.00017808,2]
[362085267,1747984248026,-430.0,0.00017808,2]
[362085268,1747984248038,-430.0,0.00017808,2]
[362085269,1747984248048,-2145.95,0.00017808,2]
[362085270,1747984248057,-497.23,0.00017808,2]
[362085271,1747984248067,-653.64,0.00017808,2]
[362085272,1747984248076,-2046.47,0.00017808,2]
[362085273,1747984248086,-440.0,0.00017808,2]
[362085274,1747984248095,-430.0,0.00017808,2]
[362085275,1747984248105,-430.0,0.00017808,2]
[362085276,1747984248115,-430.0,0.00017808,2]
[362085277,1747984248124,-222.609588,0.00017808,2]
[362085278,1747984248133,-222.609588,0.00017808,2]
[362085279,1747984248143,-430.0,0.00017808,2]
[362085280,1747984248152,-685.42,0.00017808,2]
[362085281,1747984248162,-430.0,0.00017808,2]
[362085282,1747984248173,-430.0,0.00017808,2]
[362085283,1747984248182,-1708.69,0.00017808,2]
[362085284,1747984248192,-369.40556566,0.00017947,2]
[362085285,1747984248202,-314.57823366,0.00017958,3]
[362085286,1747984248212,-894.64583333,0.00017958,3]
[362085287,1747984248222,-500.0,0.00017958,2]
[362085288,1747984248231,-500.0,0.00017958,2]
[362085289,1747984248241,-500.0,0.00017958,2]
[362085290,1747984248250,-500.0,0.00017958,2]
[362085291,1747984248260,-500.0,0.00017958,2]
[362085292,1747984248269,-500.0,0.00017958,2]
[362085293,1747984248279,-500.0,0.00017958,2]
[362085294,1747984248288,-500.0,0.00017958,2]
[362085295,1747984248298,-266.0,0.00017958,2]
[362085296,1747984248308,-151.0,0.00017958,2]
[362085297,1747984248317,-151.0,0.00017958,2]
[362085298,1747984248328,-420.0,0.00017961,2]
[362085299,1747984248339,-420.0,0.00017961,2]
[362085300,1747984248348,-5000.0,0.00017963,2]
[362085301,1747984248358,-4465.09492026,0.00017963,2]
[362085302,1747984248368,-151.0,0.00017963,2]
[362085303,1747984248378,-151.0,0.00017963,2]
[362085304,1747984248388,-207.4,0.00017963,2]
[362085305,1747984248398,-20358.40444109,0.0001797,10]
[362085306,1747984248411,-9612.57624858,0.0001797,10]
[362085307,1747984248423,-1301.39999999,0.0001797,10]
[362085309,1747984425431,209.01813962,0.00015945,2]
[362085310,1747984456040,306.399019,0.00015506,2]
[362085311,1747984627625,5000.0,0.00016,2]
[362085312,1747984646637,24900.0,0.00015794,2]
[362085313,1747984821097,567.4257528,0.00015699,2]
[362085314,1747984834218,-170.07335641,0.00016175,2]
[362085316,1747984976944,1198.2785411,0.00015643,2]
[362085317,1747984991224,79494.67710616,0.00016,2]
[362085318,1747985021443,1369.13820768,0.000161,2]
[362085332,1747985199084,349.372742,0.00013699,2]
[362085336,1747985306439,280.12557624,0.0001,2]
[362085337,1747985318168,301.999999,0.0002,120]
[362085342,1747985356767,555.2955501,0.00015712,2]
[362085377,1747985438360,-1603.53,0.00016272,2]
[362085378,1747985438372,-300.0,0.00016436,2]
[362085379,1747985438382,-500.0,0.00016437,2]
[362085380,1747985438398,-368.69203371,0.00016437,2]
[362085381,1747985438409,-1200.0,0.00016437,2]
[362085382,1747985438419,-300.0,0.00016437,2]
[362085383,1747985438430,-52.92796654,0.00016437,2]
[362085384,1747985438443,-247.07203346,0.00016437,2]
[362085385,1747985438453,-361.82615401,0.00016438,2]
[362085386,1747985438463,-354.94312132,0.00016438,2]
[362085388,1747985438475,-364.16638328,0.00016438,2]
[362085389,1747985438485,-368.93220793,0.00016438,2]
[362085390,1747985438496,-473.83841884,0.00016438,2]
[362085392,1747985438505,-245.14715116,0.00016438,2]
[362085394,1747985438527,-184.85284884,0.00016438,2]
[362085395,1747985438538,-194.64875997,0.00016438,2]
[362085397,1747985440695,-165.13355997,0.00016438,2]
[362085398,1747985440705,-430.0,0.00016438,2]
[362085399,1747985440715,-418.85004003,0.00016438,2]
[362085400,1747985440727,-11.14995997,0.00016438,2]
[362085401,1747985440737,-369.06128423,0.00016438,2]
[362085402,1747985440749,-60.93871577,0.00016438,2]
[362085403,1747985440759,-270.06128423,0.00016438,2]
[362085404,1747985440771,-102.48327832,0.00016438,2]
[362085405,1747985440782,-369.15354998,0.00016438,2]
[362085406,1747985440793,-355.79876979,0.00016438,2]
[362085407,1747985440802,-430.0,0.00016438,2]
[362085408,1747985440812,-356.55599469,0.00016438,2]
[362085409,1747985440822,-362.12889528,0.00016438,2]
[362085410,1747985440832,-195.33330762,0.00016438,2]
[362085411,1747985440842,-400.0,0.00016438,2]
[362085412,1747985440852,-229.41329124,0.00016438,2]
[362085413,1747985440862,-15.62615791,0.00016438,2]
[362085476,1747985443679,-414.37384209,0.00016438,2]
[362085478,1747985443689,-403.83736733,0.00016438,2]
[362085480,1747985443698,-200.0,0.00016438,2]
[362085481,1747985443707,-66.88159365,0.00016438,2]
[362085482,1747985443719,-294.58838485,0.00016438,2]
[362085483,1747985443729,-414.57025027,0.00016438,2]
[362085484,1747985443739,-430.0,0.00016438,2]
[362085485,1747985443749,-430.0,0.00016438,2]
[362085486,1747985443759,-433.19788648,0.00016438,2]
[362085487,1747985443769,-430.0,0.00016438,2]
[362085488,1747985443779,-430.0,0.00016438,2]
[362085489,1747985443789,-400.0,0.00016438,2]
[362085490,1747985443798,-430.0,0.00016438,2]
[362085491,1747985443808,-400.0,0.00016438,2]
[362085492,1747985443818,-402.41069058,0.00016438,2]
[362085494,1747985443827,-405.47760609,0.00016438,2]
[362085495,1747985443836,-411.27,0.00016438,2]
[362085496,1747985443846,-208.61094179,0.00016438,2]
[362085497,1747985443857,-401.72571912,0.00016438,2]
[362085498,1747985443867,-430.0,0.00016438,2]
[362085500,1747985443876,-430.0,0.00016438,2]
[362085502,1747985443886,-430.0,0.00016438,2]
[362085504,1747985443896,-430.0,0.00016438,2]
[362085506,1747985443906,-412.95978095,0.00016438,2]
[362085508,1747985443916,-430.0,0.00016438,2]
[362085510,1747985443926,-430.0,0.00016438,2]
[362085512,1747985443935,-430.0,0.00016438,2]
[362085514,1747985443945,-430.0,0.00016438,2]
[362085516,1747985443954,-400.0,0.00016438,2]
[362085517,1747985443964,-430.0,0.00016438,2]
[362085518,1747985443973,-405.04348007,0.00016438,2]
[362085519,1747985443984,-397.07319464,0.00016438,2]
[362085520,1747985443994,-450.0,0.00016438,2]
[362085521,1747985444004,-402.87638586,0.00016438,2]
[362085522,1747985444014,-249.77123551,0.00016438,2]
[362085523,1747985444023,-351.77842014,0.00016438,2]
[362085524,1747985444032,-410.51366137,0.00016438,2]
[362085525,1747985444042,-82.13236228,0.00016438,2]
[362085526,1747985444074,-347.86763772,0.00016438,2]
[362085527,1747985444087,-402.21720721,0.00016438,2]
[362085528,1747985444100,-406.94870264,0.00016438,2]
[362085529,1747985444114,-430.0,0.00016438,2]
[362085530,1747985444126,-400.0,0.00016438,2]
[362085531,1747985444137,-420.9218557,0.00016438,2]
[362085532,1747985444147,-493.93326198,0.00016438,2]
[362085533,1747985444160,-52.90284794,0.00016438,2]
[362085534,1747985444175,-377.09715206,0.00016438,2]
[362085535,1747985444187,-173.64057985,0.00016438,2]
[362085592,1747985447172,-256.35942015,0.00016438,2]
[362085594,1747985447183,-430.0,0.00016438,2]
[362085596,1747985447193,-430.0,0.00016438,2]
[362085598,1747985447204,-381.97021409,0.00016438,2]
[362085600,1747985447215,-430.0,0.00016438,2]
[362085601,1747985447225,-430.0,0.00016438,2]
[362085602,1747985447239,-352.06565033,0.00016438,2]
[362085603,1747985447250,-354.78945124,0.00016438,2]
[362085604,1747985447261,-430.0,0.00016438,2]
[362085605,1747985447272,-458.24528176,0.00016438,2]
[362085606,1747985447283,-525.10601077,0.00016438,2]
[362085607,1747985447294,-430.0,0.00016438,2]
[362085608,1747985447305,-430.0,0.00016438,2]
[362085609,1747985447316,-360.41736768,0.00016438,2]
[362085610,1747985447328,-450.0,0.00016438,2]
[362085611,1747985447338,-510.70188922,0.00016438,2]
[362085612,1747985447350,-430.0,0.00016438,2]
[362085613,1747985447361,-472.61463669,0.00016438,2]
[362085614,1747985447372,-67.13948512,0.00016438,2]
[362085615,1747985447386,-362.86051488,0.00016438,2]